[Event "*** Titled Tuesday Blitz"]
[Site "Chess.com"]
[Date "2018.11.06"]
[Round "2"]
[White "Jospem"]
[Black "Maikrosoft63"]
[Result "1-0"]
[WhiteElo "2815"]
[BlackElo "2538"]
[TimeControl "180+2"]
[EndTime "13:23:09 PST"]
[Termination "Jospem won by resignation"]

1. e4 {[%clk 0:03:01.9]} 1... c5 {[%clk 0:03:00.9]} 2. Nf3 {[%clk 0:03:03.2]}
2... Nc6 {[%clk 0:03:01.8]} 3. d4 {[%clk 0:03:02.8]} 3... cxd4 {[%clk 0:03:03]}
4. Nxd4 {[%clk 0:03:04.7]} 4... Nf6 {[%clk 0:03:04.3]} 5. Nc3 {[%clk 0:03:06]}
5... d6 {[%clk 0:03:05.5]} 6. Bg5 {[%clk 0:03:06.6]} 6... e6 {[%clk 0:03:06.5]}
7. Qd2 {[%clk 0:03:07.9]} 7... Be7 {[%clk 0:02:59]} 8. O-O-O {[%clk 0:03:04.9]}
8... O-O {[%clk 0:03:00]} 9. f4 {[%clk 0:03:05.1]} 9... h6 {[%clk 0:03:00.4]}
10. Bxf6 {[%clk 0:02:35.9]} 10... Bxf6 {[%clk 0:03:02.3]} 11. Ndb5 {[%clk
0:02:36.8]} 11... Qa5 {[%clk 0:01:57.5]} 12. Kb1 {[%clk 0:02:33.7]} 12... Rd8
{[%clk 0:01:54.2]} 13. Bc4 {[%clk 0:01:58.1]} 13... a6 {[%clk 0:01:21]} 14. Nxd6
{[%clk 0:01:58.8]} 14... b5 {[%clk 0:01:21.9]} 15. e5 {[%clk 0:01:45]} 15...
Nxe5 {[%clk 0:00:56.5]} 16. fxe5 {[%clk 0:01:44.9]} 16... Bxe5 {[%clk
0:00:57.4]} 17. Qf2 {[%clk 0:01:19.2]} 17... Rxd6 {[%clk 0:00:53.1]} 18. Rxd6
{[%clk 0:01:19.6]} 18... Bxd6 {[%clk 0:00:54.5]} 19. Bb3 {[%clk 0:01:21.5]}
19... Bb7 {[%clk 0:00:52.3]} 20. Rf1 {[%clk 0:01:22.4]} 20... Qc7 {[%clk
0:00:49.8]} 21. g4 {[%clk 0:01:23.8]} 21... Be5 {[%clk 0:00:48.4]} 22. Ne2
{[%clk 0:01:23]} 22... Rd8 {[%clk 0:00:48.2]} 23. Ng3 {[%clk 0:01:21.9]} 23...
Bf6 {[%clk 0:00:41.8]} 24. Nh5 {[%clk 0:01:19.6]} 24... Bd4 {[%clk 0:00:39.4]}
25. Qh4 {[%clk 0:01:16]} 25... Be4 {[%clk 0:00:35.4]} 26. g5 {[%clk 0:01:14.8]}
26... Bg6 {[%clk 0:00:26.4]} 27. gxh6 {[%clk 0:01:15.7]} 27... gxh6 {[%clk
0:00:27.6]} 28. Nf4 {[%clk 0:01:11.6]} 28... Bf5 {[%clk 0:00:09.2]} 29. Rd1
{[%clk 0:00:37.2]} 29... Bf6 {[%clk 0:00:08.1]} 30. Rg1+ {[%clk 0:00:37.8]}
30... Bg5 {[%clk 0:00:09.2]} 31. Qf2 {[%clk 0:00:25]} 31... Kh8 {[%clk
0:00:06.9]} 32. Nd3 {[%clk 0:00:15.5]} 32... Bxd3 {[%clk 0:00:08.2]} 33. cxd3
{[%clk 0:00:16.9]} 33... Rxd3 {[%clk 0:00:10.1]} 34. h4 {[%clk 0:00:12.9]} 34...
Rd2 {[%clk 0:00:11]} 35. Qf3 {[%clk 0:00:12.7]} 35... Qf4 {[%clk 0:00:11.4]} 36.
Qa8+ {[%clk 0:00:12.4]} 36... Kg7 {[%clk 0:00:12.9]} 37. hxg5 {[%clk 0:00:12.3]}
37... hxg5 {[%clk 0:00:14.1]} 38. Qc8 {[%clk 0:00:12.3]} 38... Rf2 {[%clk
0:00:14.7]} 39. Qc3+ {[%clk 0:00:12.8]} 39... f6 {[%clk 0:00:15.5]} 40. a3
{[%clk 0:00:12.5]} 40... Rf1+ {[%clk 0:00:16.8]} 41. Rxf1 {[%clk 0:00:14.1]}
41... Qxf1+ {[%clk 0:00:18.7]} 42. Ka2 {[%clk 0:00:16]} 42... g4 {[%clk
0:00:20]} 43. Bxe6 {[%clk 0:00:16]} 43... Qf4 {[%clk 0:00:20.7]} 44. Qc8 {[%clk
0:00:14.9]} 44... g3 {[%clk 0:00:20.3]} 45. Qg8+ {[%clk 0:00:15.7]} 45... Kh6
{[%clk 0:00:22]} 46. Bf7 {[%clk 0:00:16.6]} 46... Qf5 {[%clk 0:00:20.4]} 47.
Qxg3 {[%clk 0:00:17.2]} 47... a5 {[%clk 0:00:19.3]} 48. Qh2+ {[%clk 0:00:16.7]}
48... Kg7 {[%clk 0:00:20.4]} 49. Qc7 {[%clk 0:00:14.5]} 49... Kh6 {[%clk
0:00:20.1]} 50. Qxa5 {[%clk 0:00:13.3]} 50... Qd7 {[%clk 0:00:21.3]} 51. Bb3
{[%clk 0:00:13.3]} 51... f5 {[%clk 0:00:22.7]} 52. Qe1 {[%clk 0:00:13.4]} 52...
Kg5 {[%clk 0:00:22.2]} 53. Qg3+ {[%clk 0:00:14.6]} 53... Kf6 {[%clk 0:00:23.3]}
54. Qf4 {[%clk 0:00:15.4]} 54... Qd3 {[%clk 0:00:22.9]} 55. Qh6+ {[%clk
0:00:15.6]} 55... Ke5 {[%clk 0:00:24.1]} 56. Qg7+ {[%clk 0:00:15.8]} 56... Kf4
{[%clk 0:00:25.4]} 57. Qc3 {[%clk 0:00:14.7]} 57... Qd6 {[%clk 0:00:24.3]} 58.
Qb4+ {[%clk 0:00:11.8]} 58... Qxb4 {[%clk 0:00:25.7]} 59. axb4 {[%clk
0:00:13.7]} 59... Ke3 {[%clk 0:00:26.4]} 60. Bd5 {[%clk 0:00:14.6]} 60... f4
{[%clk 0:00:26.5]} 61. Kb3 {[%clk 0:00:15]} 61... f3 {[%clk 0:00:27.8]} 62. Bc6
{[%clk 0:00:16.6]} 62... f2 {[%clk 0:00:28.7]} 63. Bxb5 {[%clk 0:00:18.5]} 1-0

[Event "*** Titled Tuesday Blitz"]
[Site "Chess.com"]
[Date "2018.11.06"]
[Round "2"]
[White "severomorskij"]
[Black "maximlavrov"]
[Result "1/2-1/2"]
[WhiteElo "2711"]
[BlackElo "2535"]
[TimeControl "180+2"]
[EndTime "13:23:25 PST"]
[Termination "Game drawn by repetition"]

1. d4 {[%clk 0:03:01.9]} 1... g6 {[%clk 0:02:59.3]} 2. e4 {[%clk 0:03:02.2]}
2... Bg7 {[%clk 0:02:59.9]} 3. Nc3 {[%clk 0:03:03.7]} 3... d6 {[%clk 0:03:00.8]}
4. Be3 {[%clk 0:03:04.8]} 4... a6 {[%clk 0:03:02]} 5. Qd2 {[%clk 0:03:04.5]}
5... b5 {[%clk 0:03:02.9]} 6. h4 {[%clk 0:03:04.2]} 6... h5 {[%clk 0:03:02.8]}
7. Bd3 {[%clk 0:03:02.4]} 7... Nd7 {[%clk 0:03:03.3]} 8. a4 {[%clk 0:02:59.7]}
8... b4 {[%clk 0:03:03.7]} 9. Nce2 {[%clk 0:02:58]} 9... c5 {[%clk 0:03:01.1]}
10. c3 {[%clk 0:02:59]} 10... bxc3 {[%clk 0:03:00.5]} 11. bxc3 {[%clk
0:02:59.6]} 11... Bb7 {[%clk 0:03:00]} 12. Nh3 {[%clk 0:02:57.9]} 12... Ngf6
{[%clk 0:02:52.2]} 13. f3 {[%clk 0:02:58.4]} 13... Qc7 {[%clk 0:02:50.6]} 14.
O-O {[%clk 0:02:54.3]} 14... O-O {[%clk 0:02:47.6]} 15. Bh6 {[%clk 0:02:53.8]}
15... a5 {[%clk 0:02:43.4]} 16. Bxg7 {[%clk 0:02:54.1]} 16... Kxg7 {[%clk
0:02:44.5]} 17. Ng5 {[%clk 0:02:55.3]} 17... Ba6 {[%clk 0:02:39]} 18. Nf4 {[%clk
0:02:49.7]} 18... Qa7 {[%clk 0:01:58]} 19. Bxa6 {[%clk 0:02:35.6]} 19... Qxa6
{[%clk 0:01:59.9]} 20. Rfe1 {[%clk 0:01:51.9]} 20... cxd4 {[%clk 0:01:45.4]} 21.
cxd4 {[%clk 0:01:51.7]} 21... e5 {[%clk 0:01:46.3]} 22. dxe5 {[%clk 0:01:48.3]}
22... dxe5 {[%clk 0:01:48.2]} 23. Nd5 {[%clk 0:01:47.6]} 23... Rfc8 {[%clk
0:01:44.1]} 24. Kh2 {[%clk 0:01:43.6]} 24... Qd6 {[%clk 0:01:41.7]} 25. Rad1
{[%clk 0:01:37.4]} 25... Nxd5 {[%clk 0:01:36]} 26. Qxd5 {[%clk 0:01:34.8]} 26...
Qxd5 {[%clk 0:01:37.2]} 27. Rxd5 {[%clk 0:01:36.3]} 27... Ra7 {[%clk 0:01:38.6]}
28. Rb1 {[%clk 0:01:28.9]} 28... Rc4 {[%clk 0:01:28.2]} 29. Rbd1 {[%clk
0:01:22.8]} 29... Nf6 {[%clk 0:01:29.1]} 30. Rxe5 {[%clk 0:01:22.8]} 30... Rxa4
{[%clk 0:01:30]} 31. Rc5 {[%clk 0:01:13.2]} 31... Rb4 {[%clk 0:01:26.1]} 32. Ra1
{[%clk 0:00:51.4]} 32... a4 {[%clk 0:01:26.6]} 33. Rc3 {[%clk 0:00:52.5]} 33...
Nd7 {[%clk 0:01:18.4]} 34. Kg3 {[%clk 0:00:51]} 34... Ne5 {[%clk 0:01:19.4]} 35.
Kf4 {[%clk 0:00:38.9]} 35... Nc4 {[%clk 0:01:20.5]} 36. g4 {[%clk 0:00:34]}
36... hxg4 {[%clk 0:01:20.9]} 37. Kxg4 {[%clk 0:00:34.3]} 37... a3 {[%clk
0:01:18.6]} 38. h5 {[%clk 0:00:34.7]} 38... gxh5+ {[%clk 0:01:14.7]} 39. Kxh5
{[%clk 0:00:35.5]} 39... a2 {[%clk 0:01:16.2]} 40. Rc2 {[%clk 0:00:35.1]} 40...
Rb2 {[%clk 0:01:17.3]} 41. Rxc4 {[%clk 0:00:31.1]} 41... Rb1 {[%clk 0:01:15.1]}
42. Rxa2 {[%clk 0:00:29.1]} 42... Rxa2 {[%clk 0:01:17]} 43. Rc7 {[%clk
0:00:29.5]} 43... Rh1+ {[%clk 0:01:03.4]} 44. Kg4 {[%clk 0:00:29.9]} 44... Kg8
{[%clk 0:01:04]} 45. Kf5 {[%clk 0:00:16.7]} 45... Rf2 {[%clk 0:00:54.1]} 46. e5
{[%clk 0:00:12.1]} 46... Rh6 {[%clk 0:00:54.6]} 47. f4 {[%clk 0:00:09.9]} 47...
Rh4 {[%clk 0:00:54.9]} 48. Rc4 {[%clk 0:00:10.3]} 48... Kg7 {[%clk 0:00:54.3]}
49. Rd4 {[%clk 0:00:11.3]} 49... Rf1 {[%clk 0:00:48.6]} 50. Rc4 {[%clk
0:00:12.2]} 50... Kf8 {[%clk 0:00:27.6]} 51. Rc8+ {[%clk 0:00:08.4]} 51... Ke7
{[%clk 0:00:28.9]} 52. Rc7+ {[%clk 0:00:07.9]} 52... Ke8 {[%clk 0:00:30.3]} 53.
Rc4 {[%clk 0:00:08.8]} 53... Rf2 {[%clk 0:00:31.3]} 54. Rb4 {[%clk 0:00:09.3]}
54... Rf1 {[%clk 0:00:25.3]} 55. Ra4 {[%clk 0:00:09.6]} 55... Rf2 {[%clk
0:00:22]} 56. Rb4 {[%clk 0:00:10]} 56... Rf1 {[%clk 0:00:23.3]} 57. Ra4 {[%clk
0:00:10.2]} 57... Rf2 {[%clk 0:00:24.5]} 58. Rb4 {[%clk 0:00:11.1]} 58... Rf1
{[%clk 0:00:25.8]} 59. Ra4 {[%clk 0:00:08.8]} 59... Rf2 {[%clk 0:00:26.9]} 60.
e6 {[%clk 0:00:07.6]} 60... fxe6+ {[%clk 0:00:18.6]} 61. Nxe6 {[%clk 0:00:09.5]}
61... Kd7 {[%clk 0:00:15.8]} 62. Ra7+ {[%clk 0:00:08.9]} 62... Kd6 {[%clk
0:00:16.6]} 63. Ra6+ {[%clk 0:00:10]} 63... Kd7 {[%clk 0:00:17.9]} 64. Ra7+
{[%clk 0:00:11]} 64... Kd6 {[%clk 0:00:19.1]} 65. Ra6+ {[%clk 0:00:12.1]} 65...
Kd7 {[%clk 0:00:20.4]} 66. Ra7+ {[%clk 0:00:12.2]} 66... Kd6 {[%clk 0:00:21.7]}
67. Ra6+ {[%clk 0:00:13.4]} 67... Kd7 {[%clk 0:00:23]} 68. Ra7+ {[%clk
0:00:14.6]} 68... Kd6 {[%clk 0:00:24.3]} 69. Ra6+ {[%clk 0:00:15.6]} 69... Kd7
{[%clk 0:00:25.7]} 70. Ra7+ {[%clk 0:00:16.7]} 1/2-1/2

[Event "*** Titled Tuesday Blitz"]
[Site "Chess.com"]
[Date "2018.11.06"]
[Round "2"]
[White "NTBT_DHS"]
[Black "Arjun2002"]
[Result "1-0"]
[WhiteElo "2730"]
[BlackElo "2341"]
[TimeControl "180+2"]
[EndTime "13:23:28 PST"]
[Termination "NTBT_DHS won by resignation"]

1. d4 {[%clk 0:03:01.9]} 1... d5 {[%clk 0:03:00.4]} 2. c4 {[%clk 0:03:03.8]}
2... c6 {[%clk 0:03:01.3]} 3. Nf3 {[%clk 0:03:05.7]} 3... Nf6 {[%clk 0:03:02.1]}
4. e3 {[%clk 0:03:07.2]} 4... Bf5 {[%clk 0:03:02.3]} 5. Nc3 {[%clk 0:03:07.9]}
5... e6 {[%clk 0:03:02.5]} 6. Nh4 {[%clk 0:03:07.9]} 6... Be4 {[%clk 0:03:02.7]}
7. f3 {[%clk 0:03:07]} 7... Bg6 {[%clk 0:03:03.7]} 8. Qb3 {[%clk 0:03:08.2]}
8... Qc7 {[%clk 0:03:04.2]} 9. Bd2 {[%clk 0:03:07.1]} 9... a6 {[%clk 0:03:04.8]}
10. Rc1 {[%clk 0:03:07.5]} 10... dxc4 {[%clk 0:03:03.5]} 11. Bxc4 {[%clk
0:03:08.1]} 11... Be7 {[%clk 0:03:02.9]} 12. g3 {[%clk 0:03:06.2]} 12... Nbd7
{[%clk 0:02:58.6]} 13. O-O {[%clk 0:02:58.8]} 13... b5 {[%clk 0:02:59.5]} 14.
Be2 {[%clk 0:02:58.5]} 14... c5 {[%clk 0:02:59.2]} 15. Nxg6 {[%clk 0:02:33.1]}
15... hxg6 {[%clk 0:02:58.8]} 16. dxc5 {[%clk 0:02:28.9]} 16... Bxc5 {[%clk
0:02:42.4]} 17. Kg2 {[%clk 0:02:24.7]} 17... Qb7 {[%clk 0:02:35.5]} 18. e4
{[%clk 0:01:54.8]} 18... Bd4 {[%clk 0:02:27.2]} 19. Rfd1 {[%clk 0:01:50]} 19...
O-O {[%clk 0:01:59.2]} 20. Bf4 {[%clk 0:01:44]} 20... e5 {[%clk 0:01:56.9]} 21.
Bg5 {[%clk 0:01:43.6]} 21... Nc5 {[%clk 0:01:56.2]} 22. Qb4 {[%clk 0:01:43.1]}
22... Nfd7 {[%clk 0:01:33.8]} 23. Nd5 {[%clk 0:01:35.8]} 23... Ne6 {[%clk
0:01:02.9]} 24. Be7 {[%clk 0:01:25.7]} 24... Rfc8 {[%clk 0:01:01.8]} 25. a4
{[%clk 0:01:23.7]} 25... Nb6 {[%clk 0:00:28.5]} 26. axb5 {[%clk 0:00:59.8]}
26... Nxd5 {[%clk 0:00:26.6]} 27. exd5 {[%clk 0:01:01.7]} 27... Qxd5 {[%clk
0:00:25.2]} 28. bxa6 {[%clk 0:01:02.5]} 28... Rcb8 {[%clk 0:00:23.9]} 29. Qa3
{[%clk 0:00:47.1]} 29... Qd7 {[%clk 0:00:15]} 30. Bb4 {[%clk 0:00:42]} 30... f5
{[%clk 0:00:13.3]} 31. Bc4 {[%clk 0:00:40.4]} 31... Kh7 {[%clk 0:00:13.3]} 32.
Bc3 {[%clk 0:00:37.3]} 32... Ng5 {[%clk 0:00:12.1]} 33. Bxd4 {[%clk 0:00:32.9]}
33... exd4 {[%clk 0:00:13.1]} 34. h4 {[%clk 0:00:34]} 34... Nf7 {[%clk
0:00:11.3]} 35. Bxf7 {[%clk 0:00:29.9]} 35... Qxf7 {[%clk 0:00:12.2]} 36. Rxd4
{[%clk 0:00:28.3]} 36... Qf6 {[%clk 0:00:13.4]} 37. Rd6 {[%clk 0:00:15]} 37...
Qxb2+ {[%clk 0:00:13.9]} 38. Qxb2 {[%clk 0:00:15.7]} 38... Rxb2+ {[%clk
0:00:14.9]} 39. Kh3 {[%clk 0:00:17]} 39... Ra2 {[%clk 0:00:15.8]} 40. Rcc6
{[%clk 0:00:17.2]} 40... Ra3 {[%clk 0:00:13]} 41. Rxg6 {[%clk 0:00:17.3]} 41...
Rxf3 {[%clk 0:00:11.7]} 42. h5 {[%clk 0:00:18.8]} 42... Ra3 {[%clk 0:00:09.5]}
43. Rc7 {[%clk 0:00:19.6]} 43... R8xa6 {[%clk 0:00:09.3]} 44. Rcxg7+ {[%clk
0:00:19.5]} 44... Kh8 {[%clk 0:00:10.5]} 45. Rg8+ {[%clk 0:00:19.9]} 45... Kh7
{[%clk 0:00:11.6]} 46. R6g7+ {[%clk 0:00:17.6]} 46... Kh6 {[%clk 0:00:12.8]} 47.
Rg5 {[%clk 0:00:17.5]} 47... f4 {[%clk 0:00:12.5]} 48. Kh4 {[%clk 0:00:15.4]}
48... Kh7 {[%clk 0:00:06.6]} 49. gxf4 {[%clk 0:00:12.2]} 49... R3a4 {[%clk
0:00:06]} 50. Kg4 {[%clk 0:00:11.5]} 50... Rf6 {[%clk 0:00:06.9]} 51. R5g7+
{[%clk 0:00:12.3]} 51... Kh6 {[%clk 0:00:07.7]} 52. Rg6+ {[%clk 0:00:13.9]}
52... Rxg6+ {[%clk 0:00:08.5]} 53. hxg6 {[%clk 0:00:13.9]} 53... Ra5 {[%clk
0:00:07.2]} 54. f5 {[%clk 0:00:14.1]} 54... Ra4+ {[%clk 0:00:08.2]} 55. Kf3
{[%clk 0:00:15.4]} 55... Kg5 {[%clk 0:00:09.2]} 56. Rf8 {[%clk 0:00:16.2]} 56...
Ra3+ {[%clk 0:00:06.8]} 57. Ke4 {[%clk 0:00:17.2]} 57... Ra4+ {[%clk 0:00:08.1]}
58. Kd3 {[%clk 0:00:16.7]} 58... Ra3+ {[%clk 0:00:08.9]} 59. Kd4 {[%clk
0:00:17.7]} 59... Ra4+ {[%clk 0:00:10.1]} 60. Kc3 {[%clk 0:00:18.2]} 60... Ra3+
{[%clk 0:00:11.1]} 61. Kb4 {[%clk 0:00:19.3]} 61... Ra7 {[%clk 0:00:11.4]} 62.
Rf7 {[%clk 0:00:19.4]} 62... Ra8 {[%clk 0:00:11.1]} 63. g7 {[%clk 0:00:20.7]}
63... Kh6 {[%clk 0:00:11.8]} 64. Rf8 {[%clk 0:00:18.9]} 64... Ra1 {[%clk
0:00:11.4]} 65. g8=Q {[%clk 0:00:19.4]} 65... Rb1+ {[%clk 0:00:12.4]} 66. Kc3
{[%clk 0:00:20.8]} 66... Rc1+ {[%clk 0:00:13.4]} 67. Kd2 {[%clk 0:00:22]} 1-0

[Event "*** Titled Tuesday Blitz"]
[Site "Chess.com"]
[Date "2018.11.06"]
[Round "2"]
[White "TomsKantans"]
[Black "Rashad_Zeynalli"]
[Result "1-0"]
[WhiteElo "2507"]
[BlackElo "2397"]
[TimeControl "180+2"]
[EndTime "13:24:05 PST"]
[Termination "TomsKantans won by resignation"]

1. e4 {[%clk 0:03:01.9]} 1... e5 {[%clk 0:02:58.6]} 2. Nf3 {[%clk 0:02:59.8]}
2... Nc6 {[%clk 0:02:59.3]} 3. d4 {[%clk 0:02:58.8]} 3... exd4 {[%clk
0:02:59.9]} 4. Nxd4 {[%clk 0:03:00.7]} 4... Nf6 {[%clk 0:03:00.2]} 5. Nc3 {[%clk
0:03:00.8]} 5... Bb4 {[%clk 0:02:59.2]} 6. Nxc6 {[%clk 0:03:01.8]} 6... bxc6
{[%clk 0:03:01]} 7. Qd4 {[%clk 0:03:02.2]} 7... c5 {[%clk 0:02:34.8]} 8. Qe5+
{[%clk 0:03:02.7]} 8... Qe7 {[%clk 0:02:33.7]} 9. Qxe7+ {[%clk 0:03:03.6]} 9...
Kxe7 {[%clk 0:02:35.6]} 10. Bd2 {[%clk 0:03:05.1]} 10... d6 {[%clk 0:02:26.1]}
11. f3 {[%clk 0:03:04.9]} 11... Be6 {[%clk 0:02:19.3]} 12. O-O-O {[%clk
0:03:05.2]} 12... Rhe8 {[%clk 0:02:04.2]} 13. Bb5 {[%clk 0:03:04.5]} 13... Bd7
{[%clk 0:02:02.7]} 14. Bxd7 {[%clk 0:03:02.8]} 14... Kxd7 {[%clk 0:02:01.5]} 15.
a3 {[%clk 0:03:00.9]} 15... Ba5 {[%clk 0:01:57.4]} 16. g4 {[%clk 0:02:51.1]}
16... Kc6 {[%clk 0:01:57.2]} 17. h4 {[%clk 0:02:41.7]} 17... Nd7 {[%clk
0:01:57.6]} 18. Nd5 {[%clk 0:02:32]} 18... Bxd2+ {[%clk 0:01:57.7]} 19. Rxd2
{[%clk 0:02:33.9]} 19... Ne5 {[%clk 0:01:57.7]} 20. Rf1 {[%clk 0:02:33.1]} 20...
a5 {[%clk 0:01:39.6]} 21. g5 {[%clk 0:02:32]} 21... Rab8 {[%clk 0:01:31.4]} 22.
Ne3 {[%clk 0:02:32]} 22... Rb7 {[%clk 0:01:09.5]} 23. h5 {[%clk 0:02:32.3]}
23... Reb8 {[%clk 0:01:09.5]} 24. c3 {[%clk 0:02:13.5]} 24... c4 {[%clk
0:01:08.9]} 25. Kb1 {[%clk 0:02:01.4]} 25... Kc5 {[%clk 0:01:08.5]} 26. Rff2
{[%clk 0:00:48.8]} 26... Nd3 {[%clk 0:01:07.6]} 27. Rh2 {[%clk 0:00:48.5]} 27...
c6 {[%clk 0:01:05.3]} 28. Nf5 {[%clk 0:00:36.5]} 28... Rb3 {[%clk 0:01:04.3]}
29. Ka1 {[%clk 0:00:26.4]} 29... g6 {[%clk 0:00:55.3]} 30. hxg6 {[%clk
0:00:26.1]} 30... fxg6 {[%clk 0:00:47.6]} 31. Nd4 {[%clk 0:00:27.2]} 31... R3b7
{[%clk 0:00:48.1]} 32. b4+ {[%clk 0:00:21.7]} 32... axb4 {[%clk 0:00:25.5]} 33.
axb4+ {[%clk 0:00:23.6]} 33... Kb6 {[%clk 0:00:25.3]} 34. Ra2 {[%clk 0:00:24.5]}
34... c5 {[%clk 0:00:23]} 35. bxc5+ {[%clk 0:00:24.6]} 35... Kxc5 {[%clk
0:00:21.6]} 36. Ra5+ {[%clk 0:00:25.7]} 36... Kb6 {[%clk 0:00:23.2]} 37. Rha2
{[%clk 0:00:24.5]} 37... Nc5 {[%clk 0:00:21.6]} 38. Rb5+ {[%clk 0:00:24.1]}
38... Kc7 {[%clk 0:00:22.6]} 39. Rxb7+ {[%clk 0:00:23.8]} 39... Rxb7 {[%clk
0:00:24.5]} 40. Ra8 {[%clk 0:00:22.5]} 40... Nb3+ {[%clk 0:00:23.8]} 41. Ka2
{[%clk 0:00:22.8]} 41... Nc1+ {[%clk 0:00:24.6]} 42. Ka1 {[%clk 0:00:22.8]}
42... Nb3+ {[%clk 0:00:25.5]} 43. Ka2 {[%clk 0:00:22.6]} 43... Nc1+ {[%clk
0:00:20.6]} 44. Ka3 {[%clk 0:00:23.6]} 44... Kb6 {[%clk 0:00:18.5]} 45. Rd8
{[%clk 0:00:19.2]} 45... Kc7 {[%clk 0:00:18.9]} 46. Rh8 {[%clk 0:00:18.9]} 46...
Kb6 {[%clk 0:00:17.3]} 47. Rc8 {[%clk 0:00:19.9]} 47... Nd3 {[%clk 0:00:15]} 48.
Rc6+ {[%clk 0:00:18]} 48... Ka5 {[%clk 0:00:14.5]} 49. Rxc4 {[%clk 0:00:17.8]}
49... Rb1 {[%clk 0:00:15.7]} 50. Rc6 {[%clk 0:00:09.5]} 50... Ra1+ {[%clk
0:00:11.9]} 51. Kb3 {[%clk 0:00:10.5]} 51... Nc5+ {[%clk 0:00:13.4]} 52. Kc4
{[%clk 0:00:11.1]} 52... Rg1 {[%clk 0:00:11.4]} 53. Rxd6 {[%clk 0:00:11.3]}
53... Na4 {[%clk 0:00:12.1]} 54. Rd5+ {[%clk 0:00:11.7]} 54... Ka6 {[%clk
0:00:13.7]} 55. Kd3 {[%clk 0:00:09.5]} 55... Nb2+ {[%clk 0:00:12.7]} 56. Ke3
{[%clk 0:00:09.5]} 56... Nc4+ {[%clk 0:00:13.6]} 57. Kf4 {[%clk 0:00:11]} 57...
Rh1 {[%clk 0:00:14]} 58. Rc5 {[%clk 0:00:11.2]} 58... Nb6 {[%clk 0:00:13.7]} 59.
Ne6 {[%clk 0:00:10.9]} 59... Rh4+ {[%clk 0:00:13.2]} 60. Ke3 {[%clk 0:00:12.2]}
60... Rh1 {[%clk 0:00:14.1]} 61. Rc7 {[%clk 0:00:12.5]} 61... Re1+ {[%clk
0:00:14]} 62. Kf4 {[%clk 0:00:13.8]} 62... Rh1 {[%clk 0:00:13.7]} 63. Nf8 {[%clk
0:00:14.8]} 63... Kb5 {[%clk 0:00:14.2]} 64. Rxh7 {[%clk 0:00:14.2]} 64... Rc1
{[%clk 0:00:13.2]} 65. Nxg6 {[%clk 0:00:15.2]} 65... Rxc3 {[%clk 0:00:13.7]} 66.
Ne5 {[%clk 0:00:16.5]} 66... Rc8 {[%clk 0:00:14.3]} 67. g6 {[%clk 0:00:17.2]}
67... Rf8+ {[%clk 0:00:15.8]} 68. Ke3 {[%clk 0:00:18.2]} 68... Re8 {[%clk
0:00:15.6]} 69. f4 {[%clk 0:00:19.5]} 69... Ra8 {[%clk 0:00:16.2]} 70. Rc7
{[%clk 0:00:19]} 70... Ra3+ {[%clk 0:00:17.2]} 71. Kf2 {[%clk 0:00:20.4]} 71...
Ra4 {[%clk 0:00:15.4]} 72. Kf3 {[%clk 0:00:21.5]} 72... Ra3+ {[%clk 0:00:16.3]}
73. Kg4 {[%clk 0:00:22.9]} 73... Na8 {[%clk 0:00:17.8]} 74. Rc1 {[%clk
0:00:19.2]} 74... Ra2 {[%clk 0:00:18.6]} 75. Kf5 {[%clk 0:00:19.7]} 75... Rg2
{[%clk 0:00:19.4]} 76. Kf6 {[%clk 0:00:19.7]} 76... Nb6 {[%clk 0:00:20.9]} 77.
g7 {[%clk 0:00:19.9]} 77... Nc8 {[%clk 0:00:21.7]} 78. Rxc8 {[%clk 0:00:17.8]}
1-0